[Event "Live Chess"]
[Site "Chess.com"]
[Date "2023.05.21"]
[Round "-"]
[White "smoggyrabbit"]
[Black "Hacker_2009"]
[Result "1-0"]
[WhiteElo "1753"]
[BlackElo "1918"]
[TimeControl "300"]
[EndTime "21:55:14 PDT"]
[Termination "smoggyrabbit won by resignation"]

1. d4 {[%clk 0:04:58.7]} 1... Nf6 {[%clk 0:04:57.5]} 2. Nf3 {[%clk 0:04:57.5]}
2... d5 {[%clk 0:04:55.7]} 3. e3 {[%clk 0:04:56.5]} 3... e6 {[%clk 0:04:55.2]}
4. Bd3 {[%clk 0:04:55.1]} 4... c5 {[%clk 0:04:54.3]} 5. b3 {[%clk 0:04:52.8]}
5... Nc6 {[%clk 0:04:51.3]} 6. Bb2 {[%clk 0:04:51.3]} 6... b6 {[%clk 0:04:50.1]}
7. O-O {[%clk 0:04:49.6]} 7... Bb7 {[%clk 0:04:49.6]} 8. Nbd2 {[%clk 0:04:46.3]}
8... Be7 {[%clk 0:04:48.6]} 9. Ne5 {[%clk 0:04:44.5]} 9... O-O {[%clk
0:04:45.5]} 10. a3 {[%clk 0:04:29.1]} 10... Rc8 {[%clk 0:04:44.4]} 11. f4 {[%clk
0:04:27.5]} 11... Nxe5 {[%clk 0:04:39.5]} 12. fxe5 {[%clk 0:04:25.8]} 12... Ne4
{[%clk 0:04:39.4]} 13. Rf3 {[%clk 0:03:55.1]} 13... Nxd2 {[%clk 0:04:35.8]} 14.
Qxd2 {[%clk 0:03:52.2]} 14... c4 {[%clk 0:04:34.9]} 15. Be2 {[%clk 0:03:10.8]}
15... b5 {[%clk 0:04:30.7]} 16. Rg3 {[%clk 0:02:45.2]} 16... Qc7 {[%clk
0:04:21.3]} 17. e4 {[%clk 0:02:30.4]} 17... dxe4 {[%clk 0:04:10.6]} 18. Qh6
{[%clk 0:02:26.6]} 18... g6 {[%clk 0:03:55.1]} 19. Rh3 {[%clk 0:02:21.1]} 19...
Bh4 {[%clk 0:03:40.9]} 20. Rxh4 {[%clk 0:02:16.6]} 20... Rfd8 {[%clk 0:03:38.9]}
21. Qxh7+ {[%clk 0:01:53.6]} 21... Kf8 {[%clk 0:03:37.1]} 22. Qh8+ {[%clk
0:01:25.2]} 22... Ke7 {[%clk 0:03:34]} 23. Qf6+ {[%clk 0:01:22.9]} 23... Kd7
{[%clk 0:03:32.8]} 24. Qxf7+ {[%clk 0:01:21.6]} 24... Kc6 {[%clk 0:03:32.4]} 25.
Qxe6+ {[%clk 0:01:19]} 1-0

[Event "Live Chess"]
[Site "Chess.com"]
[Date "2023.05.21"]
[Round "-"]
[White "Nazarenko_vital"]
[Black "MaximKhimchenko"]
[Result "1-0"]
[WhiteElo "1600"]
[BlackElo "1344"]
[TimeControl "300"]
[EndTime "21:55:59 PDT"]
[Termination "Nazarenko_vital won - game abandoned"]

1. e4 {[%clk 0:04:56.7]} 1... e5 {[%clk 0:04:59.1]} 2. Nf3 {[%clk 0:04:54.3]}
2... Nc6 {[%clk 0:04:59]} 3. d4 {[%clk 0:04:53]} 3... exd4 {[%clk 0:04:54.8]} 4.
Nxd4 {[%clk 0:04:51.7]} 4... Bc5 {[%clk 0:04:50.9]} 5. Be3 {[%clk 0:04:50.1]}
5... Nxd4 {[%clk 0:04:37.9]} 6. Bxd4 {[%clk 0:04:30.6]} 6... Bxd4 {[%clk
0:04:34.8]} 7. Qxd4 {[%clk 0:04:29.5]} 7... Qf6 {[%clk 0:04:32.3]} 8. Qb4 {[%clk
0:04:23.5]} 8... Qb6 {[%clk 0:04:25.7]} 9. Qxb6 {[%clk 0:04:20.3]} 9... axb6
{[%clk 0:04:25.6]} 10. Nc3 {[%clk 0:04:19]} 10... Ne7 {[%clk 0:04:24.2]} 11.
O-O-O {[%clk 0:04:11.3]} 11... d6 {[%clk 0:04:22.5]} 12. f4 {[%clk 0:04:07.9]}
12... Be6 {[%clk 0:04:21.3]} 13. Bb5+ {[%clk 0:03:58]} 13... c6 {[%clk
0:04:18.2]} 14. Be2 {[%clk 0:03:53.3]} 14... O-O {[%clk 0:04:13.7]} 15. f5
{[%clk 0:03:50.1]} 15... Bxa2 {[%clk 0:04:10.3]} 16. b3 {[%clk 0:03:45.2]} 16...
Ra5 {[%clk 0:04:06.1]} 17. Rxd6 {[%clk 0:03:41.3]} 17... Rfa8 {[%clk 0:04:03]}
18. Rhd1 {[%clk 0:03:37]} 18... Rf8 {[%clk 0:03:44.8]} 19. Kb2 {[%clk
0:03:29.5]} 1-0

[Event "Live Chess"]
[Site "Chess.com"]
[Date "2023.05.21"]
[Round "-"]
[White "Ayush_prahlad_Gupta"]
[Black "KeithArkell"]
[Result "0-1"]
[WhiteElo "1768"]
[BlackElo "2556"]
[TimeControl "300"]
[EndTime "21:56:08 PDT"]
[Termination "KeithArkell won by resignation"]

1. e4 {[%clk 0:04:53.9]} 1... c6 {[%clk 0:04:59.3]} 2. c4 {[%clk 0:04:51.7]}
2... d5 {[%clk 0:04:58.6]} 3. cxd5 {[%clk 0:04:50.6]} 3... cxd5 {[%clk
0:04:57.8]} 4. exd5 {[%clk 0:04:50.2]} 4... Nf6 {[%clk 0:04:57.5]} 5. Nc3 {[%clk
0:04:48.4]} 5... Nxd5 {[%clk 0:04:56.5]} 6. Nxd5 {[%clk 0:04:46.3]} 6... Qxd5
{[%clk 0:04:55]} 7. Nf3 {[%clk 0:04:43]} 7... Nc6 {[%clk 0:04:51]} 8. Be2 {[%clk
0:04:37.2]} 8... Bg4 {[%clk 0:04:49.5]} 9. O-O {[%clk 0:04:34.9]} 9... e6 {[%clk
0:04:48.4]} 10. h3 {[%clk 0:04:30.5]} 10... Bxf3 {[%clk 0:04:46.7]} 11. Bxf3
{[%clk 0:04:29.2]} 11... Qd6 {[%clk 0:04:44.6]} 12. d3 {[%clk 0:04:18.9]} 12...
Be7 {[%clk 0:04:43.6]} 13. b3 {[%clk 0:04:14.9]} 13... Bf6 {[%clk 0:04:42]} 14.
Rb1 {[%clk 0:04:13.5]} 14... O-O {[%clk 0:04:40.6]} 15. Bb2 {[%clk 0:04:12.4]}
15... Bxb2 {[%clk 0:04:38.2]} 16. Rxb2 {[%clk 0:04:11.2]} 16... Rfd8 {[%clk
0:04:37.9]} 17. Be2 {[%clk 0:03:56.3]} 17... Nd4 {[%clk 0:04:35.6]} 18. Rd2
{[%clk 0:03:52.9]} 18... Rac8 {[%clk 0:04:33]} 19. Re1 {[%clk 0:03:41.4]} 19...
g6 {[%clk 0:04:32.1]} 20. Qa1 {[%clk 0:03:28.4]} 20... Nc2 {[%clk 0:04:27.4]}
21. Qd1 {[%clk 0:03:24.3]} 21... Nxe1 {[%clk 0:04:25.9]} 22. Qxe1 {[%clk
0:03:24.2]} 22... Rc3 {[%clk 0:04:22.5]} 23. Rd1 {[%clk 0:03:18.2]} 23... Qd4
{[%clk 0:04:20.7]} 24. Qd2 {[%clk 0:03:14.5]} 24... b6 {[%clk 0:04:17.3]} 25.
Qg5 {[%clk 0:03:08.6]} 25... Rdc8 {[%clk 0:04:14.9]} 26. g3 {[%clk 0:02:58.9]}
26... Rc2 {[%clk 0:04:12.9]} 27. Re1 {[%clk 0:02:48.5]} 27... Qc3 {[%clk
0:04:10.4]} 28. Kf1 {[%clk 0:02:46.8]} 28... Rc1 {[%clk 0:04:09.3]} 29. Bd1
{[%clk 0:02:25.8]} 29... Qxd3+ {[%clk 0:04:07.2]} 30. Kg2 {[%clk 0:02:24.7]}
30... Rxd1 {[%clk 0:04:04.2]} 31. Qh5 {[%clk 0:02:22.8]} 31... gxh5 {[%clk
0:04:00.5]} 0-1

[Event "Live Chess"]
[Site "Chess.com"]
[Date "2023.05.21"]
[Round "-"]
[White "Doge_Dandolo"]
[Black "ExIsambard"]
[Result "0-1"]
[WhiteElo "1922"]
[BlackElo "1919"]
[TimeControl "300"]
[EndTime "21:56:13 PDT"]
[Termination "ExIsambard won by resignation"]

1. Nf3 {[%clk 0:04:55.6]} 1... d5 {[%clk 0:04:58.9]} 2. c4 {[%clk 0:04:54.3]}
2... d4 {[%clk 0:04:57.2]} 3. b4 {[%clk 0:04:51.2]} 3... Nf6 {[%clk 0:04:56]} 4.
g3 {[%clk 0:04:45]} 4... d3 {[%clk 0:04:54.1]} 5. Bg2 {[%clk 0:04:41.1]} 5...
dxe2 {[%clk 0:04:52.7]} 6. Qxe2 {[%clk 0:04:39.4]} 6... c6 {[%clk 0:04:50.6]} 7.
O-O {[%clk 0:04:37.4]} 7... e6 {[%clk 0:04:49.6]} 8. a3 {[%clk 0:04:26.7]} 8...
Be7 {[%clk 0:04:48.3]} 9. Bb2 {[%clk 0:04:25.3]} 9... O-O {[%clk 0:04:47.2]} 10.
Nc3 {[%clk 0:04:23.7]} 10... Nbd7 {[%clk 0:04:46.3]} 11. Rad1 {[%clk 0:04:21.3]}
11... b6 {[%clk 0:04:45]} 12. Ne5 {[%clk 0:04:15.7]} 12... Nxe5 {[%clk
0:04:39.9]} 13. Qxe5 {[%clk 0:04:14.5]} 13... Bb7 {[%clk 0:04:38.1]} 14. Ne4
{[%clk 0:04:08.2]} 14... Rb8 {[%clk 0:04:33.8]} 15. c5 {[%clk 0:04:01.8]} 15...
bxc5 {[%clk 0:04:30]} 16. Nxc5 {[%clk 0:04:00.3]} 16... Bxc5 {[%clk 0:04:19.1]}
17. Qxc5 {[%clk 0:03:57.4]} 17... Nd5 {[%clk 0:04:11.5]} 18. Rfe1 {[%clk
0:03:50.6]} 18... Qb6 {[%clk 0:04:05.1]} 19. Qc2 {[%clk 0:03:45.3]} 19... Rbc8
{[%clk 0:03:45]} 20. Re4 {[%clk 0:03:39.9]} 20... c5 {[%clk 0:03:37]} 21. Rh4
{[%clk 0:03:38.2]} 21... h6 {[%clk 0:03:26]} 22. Bxd5 {[%clk 0:03:24.6]} 22...
exd5 {[%clk 0:03:17.9]} 23. Qf5 {[%clk 0:03:16.7]} 23... cxb4 {[%clk 0:02:52]}
24. Qg4 {[%clk 0:03:10.5]} 24... Qg6 {[%clk 0:02:36.6]} 25. Qxb4 {[%clk
0:03:08.8]} 25... Qc2 {[%clk 0:01:54.5]} 26. Re1 {[%clk 0:02:57.5]} 26... Ba8
{[%clk 0:01:43.5]} 27. Rg4 {[%clk 0:02:55]} 27... g5 {[%clk 0:01:20.6]} 28. h4
{[%clk 0:02:43.6]} 28... Rc4 {[%clk 0:01:15.1]} 29. Qe7 {[%clk 0:02:23.3]} 29...
Rxg4 {[%clk 0:01:10.7]} 30. Qe5 {[%clk 0:02:16.3]} 30... Qh7 {[%clk 0:01:06.9]}
31. hxg5 {[%clk 0:02:10.8]} 31... Rxg5 {[%clk 0:01:02.7]} 32. Qd4 {[%clk
0:02:03.4]} 32... h5 {[%clk 0:00:58.8]} 33. Re3 {[%clk 0:01:56.9]} 33... Bc6
{[%clk 0:00:53.3]} 34. Kf1 {[%clk 0:01:54.9]} 34... Bb5+ {[%clk 0:00:47.2]} 35.
Ke1 {[%clk 0:01:52.3]} 35... Qb1+ {[%clk 0:00:42.7]} 0-1

[Event "Live Chess"]
[Site "Chess.com"]
[Date "2023.05.21"]
[Round "-"]
[White "seabuck"]
[Black "Singapourfeuj"]
[Result "0-1"]
[WhiteElo "1882"]
[BlackElo "2187"]
[TimeControl "300"]
[EndTime "21:58:26 PDT"]
[Termination "Singapourfeuj won by resignation"]

1. Nf3 {[%clk 0:04:55.8]} 1... Nf6 {[%clk 0:04:58.8]} 2. c4 {[%clk 0:04:54.8]}
2... g6 {[%clk 0:04:57.4]} 3. Nc3 {[%clk 0:04:53.9]} 3... Bg7 {[%clk 0:04:56.5]}
4. g3 {[%clk 0:04:53.1]} 4... O-O {[%clk 0:04:55.1]} 5. Bg2 {[%clk 0:04:52.2]}
5... d6 {[%clk 0:04:54.1]} 6. O-O {[%clk 0:04:51]} 6... a6 {[%clk 0:04:51]} 7.
d4 {[%clk 0:04:48.7]} 7... Nbd7 {[%clk 0:04:49.5]} 8. e4 {[%clk 0:04:46.5]} 8...
e5 {[%clk 0:04:48.4]} 9. dxe5 {[%clk 0:04:42.1]} 9... dxe5 {[%clk 0:04:47.4]}
10. Be3 {[%clk 0:04:36.1]} 10... Qe7 {[%clk 0:04:44.5]} 11. Qc2 {[%clk
0:04:34.1]} 11... c6 {[%clk 0:04:42.7]} 12. Rfd1 {[%clk 0:04:26.4]} 12... Nc5
{[%clk 0:04:39]} 13. b4 {[%clk 0:04:17.6]} 13... Ne6 {[%clk 0:04:35.8]} 14. a3
{[%clk 0:04:15.9]} 14... Ng4 {[%clk 0:04:33.7]} 15. Bb6 {[%clk 0:04:05.2]} 15...
a5 {[%clk 0:04:15.2]} 16. Bxa5 {[%clk 0:03:47.5]} 16... Nd4 {[%clk 0:04:12.3]}
17. Qc1 {[%clk 0:03:15.7]} 17... Nb3 {[%clk 0:04:07.9]} 18. Qb2 {[%clk
0:03:12.3]} 18... Nxa1 {[%clk 0:04:04.7]} 19. Qxa1 {[%clk 0:03:09.2]} 19... Be6
{[%clk 0:04:02.2]} 20. h3 {[%clk 0:02:56]} 20... Nf6 {[%clk 0:04:00.5]} 21. Bf1
{[%clk 0:02:54.8]} 21... Nd7 {[%clk 0:03:56.6]} 22. Bc7 {[%clk 0:02:48.4]} 22...
Qf6 {[%clk 0:03:53.2]} 23. Kg2 {[%clk 0:02:33.4]} 23... Rfc8 {[%clk 0:03:50.4]}
24. Bd6 {[%clk 0:02:26.1]} 24... Bxh3+ {[%clk 0:03:49.1]} 25. Kxh3 {[%clk
0:02:21]} 25... Qxf3 {[%clk 0:03:47.9]} 26. Be2 {[%clk 0:02:09.4]} 26... Qxf2
{[%clk 0:03:45.7]} 27. Rf1 {[%clk 0:01:55.5]} 27... Qe3 {[%clk 0:03:44.5]} 28.
Bg4 {[%clk 0:01:50.1]} 28... Rd8 {[%clk 0:03:33.9]} 29. Bc7 {[%clk 0:01:36.8]}
29... h5 {[%clk 0:03:32.3]} 30. Bxd7 {[%clk 0:01:20.9]} 30... Rxd7 {[%clk
0:03:30.9]} 31. Re1 {[%clk 0:00:57.2]} 31... Qf3 {[%clk 0:03:29.4]} 32. Rf1
{[%clk 0:00:53.2]} 32... Qg4+ {[%clk 0:03:28]} 0-1

[Event "Live Chess"]
[Site "Chess.com"]
[Date "2023.05.21"]
[Round "-"]
[White "mirandaasilva"]
[Black "Outspanner"]
[Result "1-0"]
[WhiteElo "1687"]
[BlackElo "1561"]
[TimeControl "300"]
[EndTime "21:59:15 PDT"]
[Termination "mirandaasilva won by resignation"]

1. d4 {[%clk 0:04:56.2]} 1... d6 {[%clk 0:04:57.9]} 2. c3 {[%clk 0:04:54.3]}
2... Nd7 {[%clk 0:04:55.2]} 3. g3 {[%clk 0:04:54.2]} 3... e5 {[%clk 0:04:52.7]}
4. Bg2 {[%clk 0:04:54.1]} 4... Ngf6 {[%clk 0:04:44.2]} 5. e4 {[%clk 0:04:53.6]}
5... Be7 {[%clk 0:04:41.4]} 6. Qc2 {[%clk 0:04:53]} 6... O-O {[%clk 0:04:40.3]}
7. Ne2 {[%clk 0:04:50.7]} 7... Re8 {[%clk 0:04:15.2]} 8. O-O {[%clk 0:04:50]}
8... Bf8 {[%clk 0:04:10.5]} 9. Nd2 {[%clk 0:04:48.8]} 9... c6 {[%clk 0:04:08.1]}
10. f4 {[%clk 0:04:41.3]} 10... exd4 {[%clk 0:03:55]} 11. cxd4 {[%clk
0:04:37.6]} 11... g6 {[%clk 0:03:45]} 12. Nc3 {[%clk 0:04:23.8]} 12... Bg7
{[%clk 0:03:42.3]} 13. e5 {[%clk 0:04:12.7]} 13... dxe5 {[%clk 0:03:36.9]} 14.
dxe5 {[%clk 0:04:10]} 14... Ng4 {[%clk 0:03:31.8]} 15. Nc4 {[%clk 0:03:55.9]}
15... f6 {[%clk 0:03:29.5]} 16. h3 {[%clk 0:03:50.6]} 16... Nh6 {[%clk
0:03:20.1]} 17. Nd6 {[%clk 0:03:48.8]} 17... fxe5 {[%clk 0:03:12.6]} 18. Nxe8
{[%clk 0:03:45.1]} 18... Qxe8 {[%clk 0:03:12.5]} 19. Re1 {[%clk 0:03:28.6]}
19... e4 {[%clk 0:03:05.9]} 20. Nxe4 {[%clk 0:03:22.5]} 20... Qf7 {[%clk
0:03:02.3]} 21. Ng5 {[%clk 0:03:11.9]} 21... Qf6 {[%clk 0:02:54.8]} 22. Qb3+
{[%clk 0:02:48.2]} 22... Kf8 {[%clk 0:02:52.4]} 1-0

[Event "Live Chess"]
[Site "Chess.com"]
[Date "2023.05.21"]
[Round "-"]
[White "Long1968"]
[Black "Biranidun"]
[Result "0-1"]
[WhiteElo "1055"]
[BlackElo "2541"]
[TimeControl "300"]
[EndTime "21:59:24 PDT"]
[Termination "Biranidun won on time"]

1. e4 {[%clk 0:04:51]} 1... c5 {[%clk 0:04:59]} 2. c3 {[%clk 0:04:48.1]} 2...
Nf6 {[%clk 0:04:57.9]} 3. e5 {[%clk 0:04:43.8]} 3... Nd5 {[%clk 0:04:57.2]} 4.
d4 {[%clk 0:04:41]} 4... cxd4 {[%clk 0:04:57.1]} 5. cxd4 {[%clk 0:04:38.9]} 5...
d6 {[%clk 0:04:56.2]} 6. exd6 {[%clk 0:04:32.5]} 6... Qxd6 {[%clk 0:04:55.3]} 7.
Nc3 {[%clk 0:04:28.9]} 7... Nc6 {[%clk 0:04:54]} 8. Nf3 {[%clk 0:04:24.5]} 8...
Bg4 {[%clk 0:04:52.7]} 9. Be2 {[%clk 0:04:17.9]} 9... e6 {[%clk 0:04:51.1]} 10.
O-O {[%clk 0:04:13.6]} 10... Be7 {[%clk 0:04:50.2]} 11. Ne5 {[%clk 0:03:42]}
11... Bxe2 {[%clk 0:04:48.2]} 12. Nxe2 {[%clk 0:03:24]} 12... Nxe5 {[%clk
0:04:30.3]} 13. dxe5 {[%clk 0:02:51.7]} 13... Qxe5 {[%clk 0:04:30.2]} 14. Qa4+
{[%clk 0:02:39.4]} 14... Kf8 {[%clk 0:04:28.9]} 15. Re1 {[%clk 0:01:59.6]} 15...
Bb4 {[%clk 0:04:14.4]} 16. Bf4 {[%clk 0:01:28.3]} 16... Qxb2 {[%clk 0:03:44.5]}
17. Rab1 {[%clk 0:00:58.2]} 17... Qa3 {[%clk 0:03:36.8]} 18. Qxa3 {[%clk
0:00:51.1]} 18... Bxa3 {[%clk 0:03:36.7]} 19. Rxb7 {[%clk 0:00:46.9]} 19... Bc5
{[%clk 0:03:07.6]} 20. Rc1 {[%clk 0:00:15]} 20... Bb6 {[%clk 0:03:06.7]} 21. Bc7
{[%clk 0:00:09.4]} 21... Bxc7 {[%clk 0:03:04.3]} 22. Rcxc7 {[%clk 0:00:02.8]}
22... Nxc7 {[%clk 0:03:04.2]} 0-1

[Event "Live Chess"]
[Site "Chess.com"]
[Date "2023.05.21"]
[Round "-"]
[White "1PRK1"]
[Black "Tushinskiy"]
[Result "0-1"]
[WhiteElo "1378"]
[BlackElo "2212"]
[TimeControl "300"]
[EndTime "21:59:34 PDT"]
[Termination "Tushinskiy won by checkmate"]

1. e4 {[%clk 0:04:58.3]} 1... e5 {[%clk 0:04:58.1]} 2. Nf3 {[%clk 0:04:55.1]}
2... d6 {[%clk 0:04:58]} 3. d4 {[%clk 0:04:53.5]} 3... Bg4 {[%clk 0:04:57.1]} 4.
dxe5 {[%clk 0:04:50.3]} 4... Nd7 {[%clk 0:04:53.1]} 5. exd6 {[%clk 0:04:47.7]}
5... Bxd6 {[%clk 0:04:53]} 6. Be2 {[%clk 0:04:44.9]} 6... Qe7 {[%clk 0:04:51.8]}
7. Nc3 {[%clk 0:04:41.9]} 7... Ngf6 {[%clk 0:04:49.2]} 8. Bg5 {[%clk 0:04:36.8]}
8... O-O-O {[%clk 0:04:42.7]} 9. h3 {[%clk 0:04:34.4]} 9... Bh5 {[%clk
0:04:40.1]} 10. Nd4 {[%clk 0:04:21]} 10... Bg6 {[%clk 0:04:14.6]} 11. f3 {[%clk
0:04:13.6]} 11... Bg3+ {[%clk 0:04:07.9]} 12. Kf1 {[%clk 0:04:12.7]} 12... h6
{[%clk 0:04:02.8]} 13. Be3 {[%clk 0:04:06.6]} 13... Ne5 {[%clk 0:03:37.4]} 14.
Qc1 {[%clk 0:03:35.9]} 14... h5 {[%clk 0:00:35.8]} 15. Ndb5 {[%clk 0:03:28.1]}
15... a6 {[%clk 0:00:34.2]} 16. Nd4 {[%clk 0:03:03.6]} 16... h4 {[%clk
0:00:31.8]} 17. Nb3 {[%clk 0:02:51.5]} 17... Nxe4 {[%clk 0:00:29.2]} 18. Nxe4
{[%clk 0:02:49.2]} 18... Bxe4 {[%clk 0:00:27.6]} 19. f4 {[%clk 0:02:38.8]} 19...
Nc6 {[%clk 0:00:24.6]} 20. Nc5 {[%clk 0:02:18.6]} 20... f5 {[%clk 0:00:19.4]}
21. Nxe4 {[%clk 0:02:12.9]} 21... Qxe4 {[%clk 0:00:18]} 22. Bf3 {[%clk
0:02:05.2]} 22... Qc4+ {[%clk 0:00:16.6]} 23. Be2 {[%clk 0:01:57.2]} 23... Qe6
{[%clk 0:00:15.4]} 24. Bf3 {[%clk 0:01:39.2]} 24... Rhe8 {[%clk 0:00:14.5]} 25.
Bxc6 {[%clk 0:01:26.8]} 25... Qxc6 {[%clk 0:00:12.5]} 26. c3 {[%clk 0:01:13]}
26... Qc4+ {[%clk 0:00:11.3]} 27. Kg1 {[%clk 0:01:09.5]} 27... Qe2 {[%clk
0:00:10.6]} 28. Bd4 {[%clk 0:00:43.7]} 28... Rxd4 {[%clk 0:00:07.4]} 29. cxd4
{[%clk 0:00:39.5]} 29... Qf2# {[%clk 0:00:06.2]} 0-1

[Event "Live Chess"]
[Site "Chess.com"]
[Date "2023.05.21"]
[Round "-"]
[White "LutherSullivan"]
[Black "BostonStrangler"]
[Result "0-1"]
[WhiteElo "2180"]
[BlackElo "2065"]
[TimeControl "300"]
[EndTime "21:59:44 PDT"]
[Termination "BostonStrangler won on time"]

1. d4 {[%clk 0:04:55.7]} 1... Nf6 {[%clk 0:04:58.6]} 2. Nf3 {[%clk 0:04:54.2]}
2... g6 {[%clk 0:04:56.9]} 3. Nbd2 {[%clk 0:04:53.7]} 3... Bg7 {[%clk
0:04:52.2]} 4. e4 {[%clk 0:04:52.5]} 4... d6 {[%clk 0:04:51.6]} 5. Bd3 {[%clk
0:04:49.5]} 5... O-O {[%clk 0:04:50.3]} 6. O-O {[%clk 0:04:49]} 6... Nc6 {[%clk
0:04:48.8]} 7. c3 {[%clk 0:04:47.7]} 7... e5 {[%clk 0:04:47.4]} 8. Re1 {[%clk
0:04:45.7]} 8... Bg4 {[%clk 0:04:43]} 9. h3 {[%clk 0:04:42.3]} 9... Bd7 {[%clk
0:04:41.9]} 10. Nf1 {[%clk 0:04:35.2]} 10... Nh5 {[%clk 0:04:31.8]} 11. dxe5
{[%clk 0:04:24.4]} 11... Nxe5 {[%clk 0:04:26.5]} 12. Nxe5 {[%clk 0:04:22.8]}
12... dxe5 {[%clk 0:04:25.7]} 13. Be2 {[%clk 0:04:16.8]} 13... Nf4 {[%clk
0:04:21.6]} 14. Bxf4 {[%clk 0:04:12.3]} 14... exf4 {[%clk 0:04:20.7]} 15. Bc4
{[%clk 0:04:09.9]} 15... Bc6 {[%clk 0:04:16.1]} 16. Qf3 {[%clk 0:04:06.1]} 16...
Qg5 {[%clk 0:04:06.2]} 17. Rad1 {[%clk 0:04:00.1]} 17... Rfd8 {[%clk 0:03:59.5]}
18. Nh2 {[%clk 0:03:32.6]} 18... h5 {[%clk 0:03:56.4]} 19. Bd5 {[%clk
0:03:29.1]} 19... Bxd5 {[%clk 0:03:47.9]} 20. Rxd5 {[%clk 0:03:27.4]} 20... Rxd5
{[%clk 0:03:42.5]} 21. exd5 {[%clk 0:03:25]} 21... Rd8 {[%clk 0:03:38.6]} 22. c4
{[%clk 0:03:18.3]} 22... Bxb2 {[%clk 0:03:32]} 23. Qb3 {[%clk 0:03:10.7]} 23...
Bd4 {[%clk 0:03:17.7]} 24. Nf3 {[%clk 0:03:08.3]} 24... Qf6 {[%clk 0:03:12.7]}
25. Qxb7 {[%clk 0:03:02.5]} 25... Bb6 {[%clk 0:03:01.5]} 26. Re5 {[%clk
0:02:41.9]} 26... Bd4 {[%clk 0:02:36.3]} 27. Re4 {[%clk 0:02:16.9]} 27... Bb6
{[%clk 0:02:32.7]} 28. c5 {[%clk 0:02:07.2]} 28... Bxc5 {[%clk 0:02:26.1]} 29.
Qxc7 {[%clk 0:02:05.2]} 29... Bb6 {[%clk 0:02:21.6]} 30. Qe5 {[%clk 0:02:02.8]}
30... Kg7 {[%clk 0:02:07.9]} 31. Qxf6+ {[%clk 0:01:47.2]} 31... Kxf6 {[%clk
0:02:06.8]} 32. Rxf4+ {[%clk 0:01:46.4]} 32... Ke7 {[%clk 0:02:06.2]} 33. Re4+
{[%clk 0:01:44.3]} 33... Kd6 {[%clk 0:01:58.8]} 34. Re1 {[%clk 0:01:42.5]} 34...
Kxd5 {[%clk 0:01:53.8]} 35. Rd1+ {[%clk 0:01:36.6]} 35... Ke6 {[%clk 0:01:43.5]}
36. Ng5+ {[%clk 0:01:29.8]} 36... Kf6 {[%clk 0:01:40.4]} 37. Ne4+ {[%clk
0:01:16.3]} 37... Ke5 {[%clk 0:01:30.3]} 38. Re1 {[%clk 0:01:14.4]} 38... Kd4
{[%clk 0:01:21.3]} 39. Kf1 {[%clk 0:01:08.2]} 39... f5 {[%clk 0:01:09.1]} 40.
Ng5 {[%clk 0:01:02.4]} 40... Kc3 {[%clk 0:01:06.4]} 41. Ne6 {[%clk 0:00:55.9]}
41... Rd2 {[%clk 0:01:02]} 42. Re2 {[%clk 0:00:45.1]} 42... Rd1+ {[%clk
0:01:00]} 43. Re1 {[%clk 0:00:44]} 43... Rd2 {[%clk 0:00:59.1]} 44. Re2 {[%clk
0:00:43.6]} 44... Rxe2 {[%clk 0:00:55.7]} 45. Kxe2 {[%clk 0:00:42.5]} 45... Kb2
{[%clk 0:00:55.6]} 46. a4 {[%clk 0:00:40.5]} 46... Kb3 {[%clk 0:00:51.7]} 47.
Nf4 {[%clk 0:00:31.1]} 47... g5 {[%clk 0:00:48.9]} 48. Nxh5 {[%clk 0:00:29.9]}
48... Kxa4 {[%clk 0:00:47.6]} 49. Ng7 {[%clk 0:00:28.7]} 49... f4 {[%clk
0:00:45.9]} 50. Ne6 {[%clk 0:00:17.5]} 50... Kb3 {[%clk 0:00:44.7]} 51. Nxg5
{[%clk 0:00:16.7]} 51... a5 {[%clk 0:00:43.1]} 52. Ne4 {[%clk 0:00:09.7]} 52...
a4 {[%clk 0:00:32.8]} 53. Nd2+ {[%clk 0:00:09.2]} 53... Kc3 {[%clk 0:00:31]} 54.
h4 {[%clk 0:00:08.4]} 54... Bxf2 {[%clk 0:00:23.1]} 55. h5 {[%clk 0:00:07.1]}
55... Be3 {[%clk 0:00:18]} 56. h6 {[%clk 0:00:05.3]} 56... f3+ {[%clk
0:00:15.1]} 57. gxf3 {[%clk 0:00:03.6]} 57... Bxh6 {[%clk 0:00:12.3]} 58. Nb1+
{[%clk 0:00:01.6]} 58... Kb2 {[%clk 0:00:10.3]} 0-1

[Event "Live Chess"]
[Site "Chess.com"]
[Date "2023.05.21"]
[Round "-"]
[White "Shepherds_Pie"]
[Black "Conradical12"]
[Result "1-0"]
[WhiteElo "1915"]
[BlackElo "1633"]
[TimeControl "300"]
[EndTime "21:59:53 PDT"]
[Termination "Shepherds_Pie won by resignation"]

1. c4 {[%clk 0:04:54.7]} 1... c5 {[%clk 0:04:57]} 2. Nc3 {[%clk 0:04:53.3]} 2...
Nc6 {[%clk 0:04:54.8]} 3. g3 {[%clk 0:04:52.2]} 3... g6 {[%clk 0:04:50.5]} 4.
Bg2 {[%clk 0:04:50.8]} 4... Bg7 {[%clk 0:04:50.1]} 5. a3 {[%clk 0:04:47.6]} 5...
a5 {[%clk 0:04:47.4]} 6. Nf3 {[%clk 0:04:44.9]} 6... Nf6 {[%clk 0:04:46.8]} 7.
O-O {[%clk 0:04:42.6]} 7... d6 {[%clk 0:04:41]} 8. d4 {[%clk 0:04:40.8]} 8...
Bf5 {[%clk 0:04:35.8]} 9. d5 {[%clk 0:04:31.6]} 9... Ne5 {[%clk 0:04:30.1]} 10.
Nxe5 {[%clk 0:04:29.8]} 10... dxe5 {[%clk 0:04:28.8]} 11. e4 {[%clk 0:04:28.5]}
11... Bd7 {[%clk 0:04:25.6]} 12. Qc2 {[%clk 0:04:24.6]} 12... Qc7 {[%clk
0:04:20]} 13. Rb1 {[%clk 0:04:21.3]} 13... O-O {[%clk 0:04:16.8]} 14. Re1 {[%clk
0:04:17.8]} 14... Qc8 {[%clk 0:04:12.1]} 15. Bg5 {[%clk 0:04:04.4]} 15... Ng4
{[%clk 0:03:59]} 16. Bxe7 {[%clk 0:04:00.9]} 16... Re8 {[%clk 0:03:54.8]} 17. d6
{[%clk 0:03:58.3]} 17... Be6 {[%clk 0:03:42.2]} 18. Nd5 {[%clk 0:03:53.8]} 18...
Bxd5 {[%clk 0:03:40]} 19. cxd5 {[%clk 0:03:51.9]} 19... c4 {[%clk 0:03:37.8]}
20. Rbc1 {[%clk 0:03:49.5]} 20... b5 {[%clk 0:03:35.7]} 21. h3 {[%clk
0:03:45.3]} 21... Nf6 {[%clk 0:03:27.1]} 22. a4 {[%clk 0:03:35.6]} 22... Qc5
{[%clk 0:03:20.1]} 23. axb5 {[%clk 0:03:32.2]} 23... Reb8 {[%clk 0:03:02.2]} 24.
Qxc4 {[%clk 0:03:23.5]} 24... Qxc4 {[%clk 0:02:57.2]} 25. Rxc4 {[%clk
0:03:22.1]} 25... Rxb5 {[%clk 0:02:56.3]} 26. Rec1 {[%clk 0:03:16.9]} 26... Rbb8
{[%clk 0:02:45.1]} 27. f4 {[%clk 0:03:15.1]} 27... exf4 {[%clk 0:02:41.9]} 28.
gxf4 {[%clk 0:03:11.6]} 28... Nh5 {[%clk 0:02:41.3]} 29. e5 {[%clk 0:03:05.9]}
29... Ng3 {[%clk 0:02:34.5]} 30. R1c2 {[%clk 0:03:01.9]} 30... Nf5 {[%clk
0:02:31.8]} 31. e6 {[%clk 0:02:53.8]} 31... Ne3 {[%clk 0:02:17.3]} 32. d7 {[%clk
0:02:41.3]} 32... Nxc2 {[%clk 0:01:53.2]} 33. Rxc2 {[%clk 0:02:38.5]} 33... Bd4+
{[%clk 0:01:47.2]} 34. Kh2 {[%clk 0:02:35.3]} 34... Bb6 {[%clk 0:01:44.7]} 35.
d6 {[%clk 0:02:29.1]} 35... fxe6 {[%clk 0:01:41.4]} 36. Bxa8 {[%clk 0:02:26.1]}
36... Rxa8 {[%clk 0:01:38.3]} 37. Rc8+ {[%clk 0:02:24.8]} 1-0